fUSD/lending_fUSD_20250421
["ID","MTS","AMOUNT","RATE_DAILY","PERIOD"]
[358535020,1745239325466,-502.46816098,0.00019973,2]
[358535021,1745239325488,-209.00893444,0.00019973,2]
[358535022,1745239325508,-299.93494927,0.00019973,2]
[358535023,1745239325530,-500.0,0.00019973,2]
[358535024,1745239325552,-623.76448604,0.00019973,2]
[358535025,1745239325573,-500.0,0.00019973,2]
[358535026,1745239325593,-343.81005581,0.00019973,2]
[358535027,1745239325614,-155.01,0.0001999,2]
[358535028,1745239325635,-155.01,0.0001999,2]
[358535029,1745239325656,-155.01,0.0001999,2]
[358535030,1745239325678,-155.01,0.0001999,2]
[358535031,1745239325700,-155.01,0.0001999,2]
[358535032,1745239325722,-155.01,0.0001999,2]
[358535033,1745239325745,-155.01,0.0001999,2]
[358535034,1745239325770,-155.01,0.0001999,2]
[358535035,1745239325792,-155.01,0.0001999,2]
[358535036,1745239325814,-155.01,0.0001999,2]
[358535037,1745239325836,-155.01,0.0001999,2]
[358535038,1745239325858,-155.01,0.0001999,2]
[358535039,1745239325879,-155.01,0.0001999,2]
[358535040,1745239325900,-155.01,0.0001999,2]
[358535041,1745239325921,-506.74691144,0.0001999,2]
[358535042,1745239325943,-506.74691144,0.0001999,2]
[358535043,1745239325965,-155.01,0.0001999,2]
[358535044,1745239325986,-506.74691144,0.0001999,2]
[358535045,1745239326007,-155.01,0.0001999,2]
[358535046,1745239326032,-155.01,0.0001999,2]
[358535047,1745239326054,-155.01,0.0001999,2]
[358535048,1745239326075,-155.01,0.0001999,2]
[358535049,1745239326098,-155.01,0.0001999,2]
[358535050,1745239326121,-155.01,0.0001999,2]
[358535051,1745239326144,-155.01,0.0001999,2]
[358535052,1745239326168,-155.01,0.0001999,2]
[358535053,1745239326191,-155.01,0.0001999,2]
[358535054,1745239326214,-155.01,0.0001999,2]
[358535055,1745239326236,-282.57993476,0.00019999,2]
[358535056,1745239326258,-1158.22165961,0.00019999,5]
[358535057,1745239326279,-261.1995445,0.00019999,2]
[358535058,1745239326301,-499.59664231,0.00019999,2]
[358535059,1745239326322,-41232.86796624,0.0002,2]
[358535060,1745239326345,-6001.3290288,0.0002,2]
[358535061,1745239326395,366.33578,0.0002685,38]
[358535062,1745239326425,366.33577,0.0002677,38]
[358535063,1745239326459,366.33577,0.0002685,38]
[358535064,1745239326506,366.33578,0.0002685,38]
[358535065,1745239326534,366.33578,0.0002693,38]
[358535066,1745239326589,-651.6709712,0.0002,2]
[358535067,1745239326613,-5645.71098654,0.0002,2]
[358535068,1745239326636,-3150.0,0.0002,4]
[358535069,1745239326659,-90552.61804226,0.0002,2]
[358535070,1745239326736,366.33577,0.0002701,38]
[358535071,1745239327928,-100000.0,0.0002,2]
[358535072,1745239368615,368.29365,0.000199,23]
[358535073,1745239372080,-206.25338225,0.000199,2]
[358535074,1745239372103,-1193.74661775,0.000199,2]
[358535075,1745239506839,-192.57703304,0.000198,2]
[358535076,1745239524300,1251.0,0.00019203,2]
[358535077,1745239598477,-466.667638,0.00019657,2]
[358535078,1745239607643,-166.64346977,0.00019552,2]
[358535079,1745239635294,-257.214401,0.00019454,2]
[358535080,1745239655025,1400.0,0.000193,7]
[358535081,1745239657126,2800.0,0.000194,7]
[358535082,1745239659234,4200.0,0.000195,7]
[358535083,1745239673997,368.29366,0.000222,28]
[358535084,1745239674200,368.29365,0.000247,34]
[358535085,1745239674254,368.29366,0.000297,44]
[358535086,1745239674305,368.29366,0.000272,39]
[358535087,1745239681829,-200.0,0.00019374,2]
[358535088,1745239681855,-100.0,0.00019431,2]
[358535089,1745239684734,-695.85,0.00019431,2]
[358535090,1745239692413,-89.501727,0.00019454,2]
[358535091,1745239692439,-1267.82645441,0.00019477,2]
[358535094,1745239711397,-194.88734647,0.00019379,2]
[358535095,1745239738781,250.0,0.00019058,2]
[358535096,1745239769399,3260.45,0.00019178,2]
[358535097,1745239774513,-263.02305704,0.00019377,2]
[358535098,1745239779359,5352.52,0.00019141,2]
[358535099,1745239781937,-163.96955977,0.00019377,2]
[358535100,1745239784064,-55942.11538614,0.00019477,2]
[358535101,1745239784099,-6058.77,0.00019477,2]
[358535102,1745239784129,-300.0,0.00019551,2]
[358535103,1745239784157,-9163.15653023,0.00019552,2]
[358535104,1745239784186,-5600.0,0.000196,7]
[358535105,1745239784214,-989.302362,0.00019657,2]
[358535106,1745239784243,-7100.0,0.000197,7]
[358535107,1745239784272,-128.96193626,0.000198,2]
[358535108,1745239784302,-1400.0,0.000198,7]
[358535109,1745239784330,-3056.32,0.00019806,2]
[358535110,1745239784358,-321.53896928,0.0001985,2]
[358535111,1745239784385,-150.0,0.00019863,2]
[358535112,1745239784412,-550.0,0.00019885,2]
[358535113,1745239784439,-299.5,0.00019886,2]
[358535114,1745239784466,-17910.18,0.00019886,2]
[358535115,1745239784492,-300.0,0.00019899,2]
[358535116,1745239784519,-158.90007297,0.000199,2]
[358535117,1745239784551,-1828.98834702,0.000199,2]
[358535118,1745239784581,-21395.59889275,0.000199,2]
[358535119,1745239784609,-321.53896928,0.000199,2]
[358535120,1745239784638,-6208.02509793,0.000199,2]
[358535121,1745239784669,-1400.0,0.000199,7]
[358535122,1745239784698,-235.42558722,0.000199,2]
[358535123,1745239784727,-197.6340795,0.000199,3]
[358535124,1745239784760,-297.01485304,0.000199,2]
[358535125,1745239784907,-3203.68854954,0.000199,2]
[358535126,1745239784935,-585.89780411,0.000199,2]
[358535127,1745239784962,-770.26955387,0.000199,2]
[358535128,1745239784990,-161.1858119,0.00019973,2]
[358535129,1745239785015,-572.36189803,0.00019973,2]
[358535130,1745239785043,-500.0,0.00019973,2]
[358535131,1745239785070,-207.22506683,0.00019973,2]
[358535132,1745239785096,-500.0,0.00019973,2]
[358535133,1745239785127,-296.45780896,0.00019973,2]
[358535134,1745239785154,-169.40496068,0.00019973,2]
[358535135,1745239785182,-500.0,0.00019973,2]
[358535136,1745239785209,-459.27150142,0.00019973,2]
[358535137,1745239785236,-160.13121089,0.00019973,2]
[358535138,1745239785264,-166.937608,0.00019973,2]
[358535139,1745239785291,-155.89959446,0.00019973,2]
[358535140,1745239785326,-280.56412088,0.00019973,2]
[358535141,1745239785365,-500.0,0.00019973,2]
[358535142,1745239785394,-500.0,0.00019973,2]
[358535143,1745239785422,-500.0,0.00019973,2]
[358535144,1745239785450,-160.07758617,0.00019973,2]
[358535145,1745239785477,-161.34545221,0.00019973,2]
[358535146,1745239785504,-158.40642611,0.00019973,2]
[358535147,1745239785532,-504.48341298,0.00019973,2]
[358535148,1745239785561,-719.94484241,0.00019999,2]
[358535149,1745239785581,-55942.11538614,0.0002,2]
[358535150,1745239785593,-6058.77,0.0002,2]
[358535151,1745239785604,-300.0,0.0002,2]
[358535152,1745239785619,-9163.15653023,0.0002,2]
[358535153,1745239785635,-5600.0,0.0002,2]
[358535154,1745239785656,-989.302362,0.0002,2]
[358535155,1745239785672,-7100.0,0.0002,2]
[358535156,1745239785688,-128.96193626,0.0002,2]
[358535157,1745239785701,-1400.0,0.0002,2]
[358535158,1745239785713,-3056.32,0.0002,2]
[358535159,1745239785732,-321.53896928,0.0002,2]
[358535160,1745239785752,-150.0,0.0002,2]
[358535161,1745239785769,-550.0,0.0002,2]
[358535162,1745239785786,-299.5,0.0002,2]
[358535163,1745239785810,-17910.18,0.0002,2]
[358535164,1745239785821,-300.0,0.0002,2]
[358535165,1745239785836,-158.90007297,0.0002,2]
[358535166,1745239785848,-1828.98834702,0.0002,2]
[358535167,1745239785859,-21395.59889275,0.0002,2]
[358535168,1745239785871,-321.53896928,0.0002,2]
[358535169,1745239785889,-6208.02509793,0.0002,2]
[358535170,1745239785905,-1400.0,0.0002,2]
[358535171,1745239785921,-235.42558722,0.0002,2]
[358535172,1745239785939,-197.6340795,0.0002,2]
[358535173,1745239785951,-297.01485304,0.0002,2]
[358535174,1745239785969,-3203.68854954,0.0002,2]
[358535175,1745239785988,-585.89780411,0.0002,2]
[358535176,1745239786108,-770.26955387,0.0002,2]
[358535177,1745239786126,-161.1858119,0.0002,2]
[358535178,1745239786141,-572.36189803,0.0002,2]
[358535179,1745239786152,-500.0,0.0002,2]
[358535180,1745239786162,-207.22506683,0.0002,2]
[358535181,1745239786173,-500.0,0.0002,2]
[358535182,1745239786184,-296.45780896,0.0002,2]
[358535183,1745239786199,-169.40496068,0.0002,2]
[358535184,1745239786211,-500.0,0.0002,2]
[358535185,1745239786227,-459.27150142,0.0002,2]
[358535186,1745239786242,-160.13121089,0.0002,2]
[358535187,1745239786258,-166.937608,0.0002,2]
[358535188,1745239786269,-155.89959446,0.0002,2]
[358535189,1745239786280,-280.56412088,0.0002,2]
[358535190,1745239786291,-500.0,0.0002,2]
[358535191,1745239786306,-500.0,0.0002,2]
[358535192,1745239786316,-500.0,0.0002,2]
[358535193,1745239786331,-160.07758617,0.0002,2]
[358535194,1745239786347,-161.34545221,0.0002,2]
[358535195,1745239786362,-158.40642611,0.0002,2]
[358535196,1745239786373,-504.48341298,0.0002,2]
[358535197,1745239786388,-719.94484241,0.0002,2]
[358535198,1745239786403,-1253467.30521386,0.0002,2]
[358535199,1745239786471,3226.057378,0.0001928,2]
[358535200,1745239800183,-34569.97306223,0.000199,2]
[358535201,1745239807855,6322.183435,7.945e-05,2]
[358535204,1745239831737,-317.51439787,0.000199,2]
[358535205,1745239831747,-206.25338225,0.000199,2]
[358535206,1745239831757,-197.63407949,0.000199,3]
[358535207,1745239831766,-500.0,0.00019973,2]
[358535208,1745239831776,-0.47315513,0.00019973,2]
[358535252,1745239832506,-12.74653568,0.00019973,2]
[358535253,1745239832522,-486.78030919,0.00019973,2]
[358535254,1745239832535,-161.2188929,0.00019973,2]
[358535255,1745239832544,-394.901872,0.00019973,2]
[358535256,1745239832553,-500.0,0.00019973,2]
[358535257,1745239832562,-500.0,0.00019973,2]
[358535258,1745239832572,-189.25783037,0.0001998,2]
[358535259,1745239832581,-214.56659968,0.0001999,2]
[358535260,1745239832591,-214.56659968,0.0001999,2]
[358535261,1745239832600,-300.0,0.00019999,2]
[358535262,1745239832610,-34761.36116071,0.0002,2]
[358535263,1745239832621,-442787.09148881,0.0002,2]
[358535264,1745239832639,-1162.41397087,0.0002,2]
[358535265,1745239832650,-381.7991848,0.0002,2]
[358535266,1745239832661,-2974.39851776,0.0002,2]
[358535267,1745239832673,-450.05155706,0.0002,2]
[358535268,1745239832688,-12549.88469912,0.0002,2]
[358535269,1745239832699,-6099.9999999,0.0002,2]
[358535270,1745239832710,-5880.0,0.0002,2]
[358535271,1745239832721,-3550.000005,0.0002,2]
[358535272,1745239832732,-1300.0,0.0002,2]
[358535276,1745239837748,-198.00990202,0.000199,2]
[358535278,1745239837758,-5969074.22415797,0.0002,2]
[358535279,1745239837770,-4626741.70951104,0.0002,2]
[358535280,1745239837780,-151.0,0.0002,2]
[358535281,1745239837789,-244.00374545,0.0002,2]
[358535282,1745239837799,-57209.94184055,0.0002,2]
[358535283,1745239837808,-57209.94184055,0.0002,2]
[358535284,1745239837817,-2000.0,0.0002,4]
[358535285,1745239837827,-8983.82472658,0.0002001,2]
[358535286,1745239837837,-4953.09632726,0.0002001,2]
[358535287,1745239837847,-5772.0,0.0002001,2]
[358535288,1745239837857,-2668.39,0.00020023,2]
[358535289,1745239837867,-500.0,0.00020207,3]
[358535290,1745239837876,-65939.25964324,0.00020313,2]
[358535291,1745239837886,-150.0,0.00020372,2]
[358535292,1745239837897,-1000.0,0.00020411,2]
[358535293,1745239837908,-200.0,0.00020455,2]
[358535294,1745239837918,-5324.44,0.00020548,2]
[358535295,1745239837927,-21896.69256911,0.000207,2]
[358535296,1745239837937,-23900.0,0.0002074,2]
[358535297,1745239837947,-7980.19,0.00020822,2]
[358535298,1745239837956,-1400.0,0.000209,7]
[358535299,1745239837966,-575.05,0.00020926,2]
[358535300,1745239837977,-176.08,0.00020938,2]
[358535301,1745239837987,-4079.95,0.00020975,2]
[358535302,1745239837998,-20000.0,0.00021,2]
[358535303,1745239838007,-250.0,0.00021312,2]
[358535304,1745239838017,-420.0,0.00021401,2]
[358535305,1745239838027,-35550.67,0.0002145,2]
[358535306,1745239838036,-150.0,0.0002156,2]
[358535307,1745239838046,-1487.2,0.00021561,2]
[358535308,1745239838055,-7305.61318874,0.000217,2]
[358535309,1745239838064,-250.0,0.0002178,2]
[358535310,1745239838074,-5434.0,0.000218,2]
[358535311,1745239838083,-4102.95,0.00021814,2]
[358535312,1745239838092,-6220.63472606,0.0002198,2]
[358535313,1745239838102,-4698.32,0.000221,2]
[358535314,1745239838111,-34221.29557957,0.000225,2]
[358535315,1745239838121,-372.14813705,0.00022562,2]
[358535316,1745239838130,-1000.0,0.00022962,2]
[358535318,1745239838139,-2000.0,0.00023,4]
[358535320,1745239838148,-402.93155919,0.0002301,2]
[358535322,1745239838158,-166.66,0.00023177,2]
[358535324,1745239838167,-50322.36865272,0.000232,2]
[358535326,1745239838177,-299.99,0.00023368,7]
[358535328,1745239838186,-37594.66,0.00023368,2]
[358535330,1745239838195,-9999.99,0.00023368,2]
[358535332,1745239838204,-150.99,0.00023368,2]
[358535333,1745239838214,-161.58,0.00023368,2]
[358535335,1745239838223,-150.99,0.00023368,2]
[358535337,1745239838232,-9999.99,0.00023368,2]
[358535339,1745239838242,-3039.57,0.00023368,2]
[358535341,1745239838251,-522.03,0.00023368,2]
[358535343,1745239838260,-487.88,0.00023368,2]
[358535345,1745239838270,-3563.82,0.00023368,2]
[358535346,1745239838279,-9999.99,0.00023368,2]
[358535348,1745239838288,-9999.99,0.00023368,2]
[358535350,1745239838297,-587.0,0.00023427,2]
[358535352,1745239838306,-438.6461,0.00023479,10]
[358535354,1745239838316,-200.0,0.000235,2]
[358535356,1745239838325,-1487.2,0.00023825,2]
[358535357,1745239838334,-288.86,0.00023836,2]
[358535359,1745239838346,-59572.97502843,0.00024,2]
[358535361,1745239838356,-45237.90564602,0.00024,2]
[358535363,1745239838365,-166.66,0.00024133,2]
[358535365,1745239838376,-3005.77194181,0.00024444,2]
[358535367,1745239838385,-1000.0,0.00024658,2]
[358535368,1745239838394,-257.42,0.00024658,4]
[358535370,1745239838404,-500.0,0.00024773,2]
[358535372,1745239838413,-550.66700527,0.00024773,2]
[358535374,1745239838423,-459.13962152,0.00024773,2]
[358535376,1745239838433,-500.70307603,0.00024773,2]
[358535378,1745239838443,-500.0,0.00024773,2]
[358535380,1745239838452,-502.45248054,0.00024773,2]
[358535382,1745239838462,-500.88139734,0.00024773,2]
[358535384,1745239838472,-500.0,0.00024773,2]
[358535386,1745239838483,-502.62779402,0.00024773,2]
[358535388,1745239838492,-501.65762717,0.00024773,2]
[358535390,1745239838502,-2757.99950867,0.000248,3]
[358535393,1745239838532,-7709.56,0.000248,3]
[358535396,1745239838552,-708.99950101,0.000248,3]
[358535580,1745239840504,-21936.14,0.00020316,2]
[358535582,1745239840514,-273781.74466532,0.000248,3]
[358535584,1745239840523,-500.0,0.00024873,2]
[358535585,1745239840532,-507.88250915,0.00024873,2]
[358535587,1745239840542,-500.0,0.00024873,2]
[358535590,1745239840551,-602.71137467,0.00024873,2]
[358535592,1745239840560,-500.0,0.00024873,2]
[358535594,1745239840569,-511.12929153,0.00024873,2]
[358535596,1745239840579,-171.61267469,0.00024873,2]
[358535597,1745239840587,-500.0,0.00024873,2]
[358535599,1745239840597,-504.98905447,0.00024873,2]
[358535601,1745239840606,-161.97921838,0.00024873,2]
[358535603,1745239840615,-500.0,0.00024873,2]
[358535605,1745239840624,-500.0,0.00024873,2]
[358535607,1745239840633,-492614.708677,0.000249,3]
[358535609,1745239840642,-2934.24242766,0.00025,2]
[358535611,1745239840651,-166.66,0.0002509,2]
[358535613,1745239840660,-3258.8387644,0.000251,2]
[358535615,1745239840669,-372.14813705,0.00025224,2]
[358535617,1745239840679,-1000.0,0.00025452,2]
[358535619,1745239840688,-1002.88824122,0.00025452,2]
[358535621,1745239840697,-834.94894474,0.00025452,2]
[358535623,1745239840706,-1000.0,0.00025452,2]
[358535625,1745239840715,-1000.0,0.00025452,2]
[358535627,1745239840724,-1000.0,0.00025513,2]
[358535629,1745239840734,-823.0,0.00025644,2]
[358535631,1745239840743,-4698.32,0.000258,2]
[358535633,1745239840753,-4357.07478906,0.00026,2]
[358535635,1745239840763,-4433.65,0.00026,2]
[358535637,1745239840773,-3062.23686548,0.00026,2]
[358535639,1745239840781,-2000.0,0.00026,4]
[358535640,1745239840791,-166.66,0.00026046,2]
[358535641,1745239840800,-1487.2,0.00026088,2]
[358535642,1745239840809,-22522.61816074,0.000264,2]
[358535643,1745239840818,-46128.87083703,0.000265,2]
[358535644,1745239840827,-166.66,0.00027002,2]
[358535645,1745239840836,-3544.65,0.00027123,2]
[358535646,1745239840846,-251.65607351,0.00027223,2]
[358535647,1745239840855,-6490.73,0.00027397,2]
[358535648,1745239840864,-151.12,0.00027397,2]
[358535649,1745239840873,-163.93,0.00027397,2]
[358535650,1745239840882,-491.80274198,0.000274,2]
[358535651,1745239840891,-946.78563424,0.000274,2]
[358535652,1745239840905,-372.14813705,0.00027887,2]
[358535653,1745239840914,-23968.4606745,0.00028,2]
[358535654,1745239840925,-479.36921349,0.00028,2]
[358535655,1745239840936,-1000.0,0.00028065,2]
[358535656,1745239840947,-1152.0,0.00028071,2]
[358535657,1745239840956,-1487.2,0.00028352,2]
[358535658,1745239840965,-200.0,0.0002856,2]
[358535659,1745239840975,-6490.73,0.00028767,2]
[358535660,1745239840986,-54818.78608386,0.00029,2]
[358535661,1745239840997,-2000.0,0.00029,4]
[358535662,1745239841007,-4079.95,0.00029365,2]
[358535663,1745239841018,-200.0,0.000297,2]
[358535664,1745239841027,-75710.26368835,0.000299,2]
[358535665,1745239841036,-13662.43722234,0.0002991,2]
[358535666,1745239841045,-204.57518545,0.00029973,5]
[358535667,1745239841054,-200.0,0.00029997,2]
[358535668,1745239841063,-206236.36454894,0.0003,2]
[358535669,1745239841072,-213.0,0.0003,2]
[358535670,1745239841082,-6490.73,0.00030137,2]
[358535671,1745239841091,-1012.83086307,0.00030252,5]
[358535672,1745239841100,-1000.0,0.00030252,5]
[358535673,1745239841109,-1022.89227506,0.00030252,5]
[358535674,1745239841118,-200.0,0.00030297,2]
[358535675,1745239841127,-1000.0,0.00030352,5]
[358535676,1745239841136,-185.09904127,0.00030352,5]
[358535677,1745239841146,-1006.92117102,0.00030352,5]
[358535678,1745239841155,-504.75280513,0.00030352,5]
[358535679,1745239841164,-4698.32,0.000304,2]
[358535680,1745239841173,-500.0,0.00030493,2]
[358535681,1745239841182,-372.14813705,0.00030549,2]
[358535682,1745239841191,-200.0,0.000306,2]
[358535683,1745239841200,-1000.0,0.00030616,2]
[358535684,1745239841209,-1487.2,0.00030616,2]
[358535685,1745239841219,-1613.0,0.00030728,2]
[358535686,1745239841228,-200.0,0.00030906,2]
[358535687,1745239841237,-6490.73,0.00031507,2]
[358535688,1745239841247,-423.87,0.00032,10]
[358535689,1745239841256,-2000.0,0.00032,4]
[358535690,1745239841265,-368.29365,0.000322,50]
[358535691,1745239841275,-4650.90721729,0.000328,2]
[358535692,1745239841284,-203.47432857,0.00032875,2]
[358535693,1745239841293,-6490.73,0.00032877,2]
[358535694,1745239841302,-952.77,0.00032877,120]
[358535695,1745239841311,-163.93,0.00032877,2]
[358535696,1745239841320,-1487.2,0.0003288,2]
[358535697,1745239841330,-261.76,0.00032904,30]
[358535698,1745239841341,-4554.78413157,0.00033,2]
[358535699,1745239841350,-25113.40752803,0.00033,2]
[358535700,1745239841359,-34887.48746009,0.00033188,2]
[358535701,1745239841368,-198.00990202,0.00033188,2]
[358535702,1745239841378,-372.14813705,0.00033211,2]
[358535703,1745239841387,-2258.0,0.00033636,3]
[358535704,1745239841396,-839.38471389,0.00033829,2]
[358535705,1745239841405,-500.0,0.00033918,2]
[358535706,1745239841415,-4001.11593141,0.00034,2]
[358535707,1745239841424,-839.38471389,0.00034083,2]
[358535708,1745239841433,-839.38471389,0.00034419,2]
[358535709,1745239841442,-839.38471389,0.00034536,2]
[358535710,1745239841451,-150.0,0.00034548,10]
[358535711,1745239841461,-5040.65,0.00034649,2]
[358535712,1745239841470,-6026.21523527,0.00035,2]
[358535713,1745239841479,-2000.0,0.00035,4]
[358535714,1745239841572,-839.38471389,0.00035011,2]
[358535715,1745239841582,-288.86,0.00035068,2]
[358535716,1745239841591,-839.38471389,0.00035077,2]
[358535717,1745239841601,-1487.2,0.00035144,2]
[358535718,1745239841610,-839.38471389,0.00035367,2]
[358535719,1745239841619,-1500.0,0.00035471,5]
[358535720,1745239841628,-1256.97312706,0.00035471,5]
[358535721,1745239841637,-839.38471389,0.00035727,2]
[358535722,1745239841646,-372.14813705,0.00035873,2]
[358535723,1745239841656,-494818.6098579,0.0003593,7]
[358535724,1745239841665,-57209.94184055,0.0003593,2]
[358535725,1745239841674,-150.0,0.00035973,5]
[358535726,1745239841683,-185.62854711,0.00035973,5]
[358535727,1745239841693,-839.38471389,0.00036112,2]
[358535728,1745239841702,-839.38471389,0.0003627,2]
[358535729,1745239841711,-839.38471389,0.00036439,2]
[358535730,1745239841720,-353.11048736,0.00036521,5]
[358535731,1745239841729,-839.38471389,0.00036812,2]
[358535732,1745239841739,-3162.0,0.0003682,3]
[358535733,1745239841749,-150.0,0.00036983,3]
[358535734,1745239841758,-150.0,0.00036983,3]
[358535735,1745239841767,-150.0,0.00036983,3]
[358535736,1745239841776,-150.0,0.00036983,3]
[358535737,1745239841785,-839.38471401,0.00037067,2]
[358535738,1745239841795,-1487.2,0.00037408,2]
[358535739,1745239841804,-4698.32,0.000375,14]
[358535740,1745239841813,-206.86179215,0.0003759,2]
[358535741,1745239841822,-30045.0,0.000376,2]
[358535742,1745239841832,-168.23914536,0.000378,2]
[358535743,1745239841841,-2000.0,0.00038,4]
[358535744,1745239841850,-694.46496262,0.000381,14]
[358535745,1745239841859,-694.46496243,0.000381,14]
[358535746,1745239841868,-694.46496243,0.000381,14]
[358535747,1745239841877,-694.46496243,0.000381,14]
[358535748,1745239841887,-694.46496243,0.000381,14]
[358535749,1745239841900,-694.46496243,0.000381,14]
[358535750,1745239841909,-694.46496243,0.000381,14]
[358535751,1745239841918,-694.46496243,0.000381,14]
[358535752,1745239841927,-694.46496243,0.000381,14]
[358535753,1745239841937,-694.46496243,0.000381,14]
[358535754,1745239841946,-694.46496243,0.000381,14]
[358535755,1745239841955,-163.93,0.00038356,2]
[358535756,1745239841965,-5563.0,0.000385,3]
[358535757,1745239841976,-694.46496243,0.00038866,14]
[358535758,1745239841985,-152.0,0.00039147,5]
[358535759,1745239841996,-5563.0,0.000395,5]
[358535760,1745239842006,-1487.2,0.00039672,2]
[358535761,1745239842016,-500.0,0.00039726,15]
[358535762,1745239842026,-500.0,0.00039726,15]
[358535763,1745239842036,-500.0,0.00039726,15]
[358535764,1745239842045,-500.0,0.00039726,15]
[358535765,1745239842055,-500.0,0.00039726,15]
[358535766,1745239842064,-500.0,0.00039726,15]
[358535767,1745239842073,-522.68145424,0.00039726,15]
[358535768,1745239842083,-500.0,0.00039726,15]
[358535769,1745239842092,-500.0,0.00039726,15]
[358535770,1745239842102,-500.0,0.00039726,15]
[358535771,1745239842111,-500.0,0.00039726,15]
[358535772,1745239842121,-500.0,0.00039726,15]
[358535773,1745239842130,-450.0,0.00039726,15]
[358535774,1745239842139,-260.78379565,0.00039726,15]
[358535775,1745239842149,-522.0,0.00039863,2]
[358535776,1745239842158,-8960.57881409,0.00039999,7]
[358535777,1745239842167,-740.16470152,0.0004,30]
[358535778,1745239842176,-197.2,0.0004,30]
[358535779,1745239842186,-500.0,0.00040027,2]
[358535780,1745239842196,-520.94346662,0.00040271,5]
[358535781,1745239842205,-4427.0,0.00040304,5]
[358535782,1745239842215,-531.01682509,0.00040371,5]
[358535783,1745239842224,-694.46496243,0.0004059,15]
[358535784,1745239842234,-2000.0,0.00041,4]
[358535785,1745239842243,-204.83,0.00041095,120]
[358535786,1745239842252,-306.53445325,0.00041096,10]
[358535787,1745239842262,-151.12,0.00041096,2]
[358535788,1745239842273,-261.76,0.00041619,30]
[358535789,1745239842283,-1487.2,0.00041936,2]
[358535790,1745239842292,-230.15,0.0004199,120]
[358535791,1745239842302,-694.46496243,0.00042314,17]
[358535792,1745239842311,-2271.905,0.0004235,64]
[358535793,1745239842321,-204.83,0.00042465,120]
[358535794,1745239842330,-4698.32,0.000425,14]
[358535795,1745239842340,-2404.0,0.00043,30]
[358535796,1745239842349,-1500.0,0.00043835,120]
[358535797,1745239842359,-1500.0,0.00043835,120]
[358535798,1745239842368,-1500.0,0.00043835,120]
[358535799,1745239842377,-1500.0,0.00043835,120]
[358535800,1745239842387,-1500.0,0.00043835,120]
[358535801,1745239842397,-1500.0,0.00043835,120]
[358535802,1745239842407,-1500.0,0.00043835,120]
[358535803,1745239842417,-1500.0,0.00043835,120]
[358535804,1745239842427,-1193.20391534,0.00043835,120]
[358535805,1745239842437,-204.83,0.00043835,120]
[358535807,1745239842446,-163.93,0.00043836,2]
[358535808,1745239842456,-3819.0,0.00044,2]
[358535810,1745239842466,-2000.0,0.00044,4]
[358535811,1745239842475,-694.46496243,0.00044038,18]
[358535812,1745239842485,-6198.0,0.00044119,5]
[358535813,1745239842495,-1487.2,0.000442,2]
[358535814,1745239842504,-3600.0,0.000444,2]
[358535815,1745239842514,-1000.0,0.00044552,14]
[358535816,1745239842523,-13013.39438139,0.000449,7]
[358535817,1745239842534,-181119.47021018,0.00045,2]
[358535818,1745239842543,-151.0,0.00045,120]
[358535819,1745239842553,-200.0,0.00045193,2]
[358535820,1745239842562,-204.83,0.00045205,120]
[358535821,1745239842571,-150.0,0.00045205,120]
[358535822,1745239842582,-150.0,0.00045205,120]
[358535823,1745239842592,-176.8979223,0.00045479,120]